Cogmind - Beta 13 @@@ ROGUE MODE // 2024.04.19 @ 15:17:39 Player: Minty Result: Destroyed by Y-54 Guardian with Flak Gun Performance ------------- Evolutions (3) 1500 Regions Visited (5) 1000 Robots Destroyed (60) 300 Value Destroyed (2060) 2060 Prototype IDs (1) 20 Alien Tech Used (0) 0 Bonus (202) 202 TOTAL SCORE: 5082 Bonus ------- High Alert Combat Kills 114 Entered Garrisons 200 Friendly Fire -112 Cogmind --------- Core Integrity 0/700 Matter 103/300 Energy 99/100 System Corruption 1% Temperature Cool (36) Movement Core (50) Location -7/Garrison Parts ------- > --- POWER (1) -------- (None) > --- PROPULSION (3) --- (None) > --- UTILITY (5) ------ (None) > --- WEAPON (4) ------- (None) > --- INVENTORY (5) ---- Deuterium Engine Small Matter Pod (22) Recalibrator Improved Field Recycling Unit (0) Peak State ------------ > --- POWER ------------ Deuterium Engine > --- PROPULSION ------- Airjet Gravmag System Gravmag System > --- UTILITY ---------- Improved Heat Sink Small Storage Unit Launcher Guidance Computer Hacking Suite System Shield > --- WEAPON ----------- Particle Cannon Heavy Particle Cannon Mini Assault Cannon Rocket Launcher > --- INVENTORY -------- Nuclear Core Wheel Small Matter Pod Recalibrator Improved Field Recycling Unit Plasma Cutter [Rating: 41] Favorites ----------- Power Light Ion Engine Engine Light Ion Engine Power Core Light Nuclear Core Propulsion Wheel Treads Light Treads Leg Aluminum Leg Wheel Wheel Hover Unit Gravmag System Utility Small Storage Unit Device Improved Heat Sink Storage Small Storage Unit Processor Terrain Scan Processor Hackware System Shield Weapon Rocket Launcher Energy Gun Small Laser Energy Cannon Particle Cannon Ballistic Gun Assault Rifle Ballistic Cannon Mini Assault Cannon Launcher Rocket Launcher Special Weapon Plasma Cutter Build | -11 -10 -9 -8 -7 -7 ------- Run | Yrd Mat Mat Mat Fac Gar Slots Evolved 6 | . . 2 2 2 . Power . | . . . . . . Propulsion 1 | . . . . 1 . Utility 3 | . . 1 1 1 . Weapon 2 | . . 1 1 . . Parts Attached 48 | . 9 4 14 7 14 Power 4 | . 2 . 1 . 1 Engine 2 | . 1 . 1 . . Core 2 | . 1 . . . 1 Reactor . | . . . . . . Propulsion 15 | . 3 . 2 5 5 Treads 2 | . . . . . 2 Leg . | . . . . . . Wheel 10 | . 3 . 2 5 . Hover 3 | . . . . . 3 Flight . | . . . . . . Utility 12 | . 2 1 5 1 3 Device 5 | . 1 . 1 1 2 Storage 2 | . . . 2 . . Processor 3 | . 1 1 . . 1 Hackware 2 | . . . 2 . . Protection . | . . . . . . Artifact . | . . . . . . Weapon 17 | . 2 3 6 1 5 Energy Gun 3 | . . 1 2 . . Energy Cannon 5 | . . 2 1 . 2 Ballistic Gun 3 | . 1 . 1 . 1 Ballistic Cannon 2 | . . . . 1 1 Launcher 3 | . 1 . 2 . . Special Weapon 1 | . . . . . 1 Impact Weapon . | . . . . . . Slashing Weapon . | . . . . . . Piercing Weapon . | . . . . . . Special Melee Weapon . | . . . . . . Unidentified Prototypes 1 | . . . . 1 . Parts Lost 17 | . 2 . 5 1 9 Power 3 | . 1 . 1 . 1 Propulsion 2 | . . . . . 2 Utility 4 | . . . 1 . 3 Weapon 8 | . 1 . 3 1 3 Highest Loss Streak 5 | . 1 . 5 1 5 To Critical Strikes . | . . . . . . Average Slot Usage (%) 87 | . 87 100 91 91 72 Engine 7 | . 7 11 6 7 5 Core 1 | . 6 . . . 1 Leg 1 | . 6 . . . . Wheel 17 | . 21 22 18 21 5 Hover 2 | . . . . . 10 Device 6 | . . 11 10 8 5 Storage 5 | . 13 . . 7 6 Processor 8 | . 3 22 12 . 5 Hackware 6 | . . . 9 15 10 Energy Gun 7 | . 20 2 8 . . Energy Cannon 8 | . . 11 11 15 6 Ballistic Gun 2 | . . 8 2 . . Ballistic Cannon 1 | . . . . 2 6 Launcher 8 | . 5 11 12 11 4 Naked Turns 19 | . . . . . 19 Heaviest Build 45 | 11 14 14 33 45 33 Greatest Support 40 | 20 20 20 26 36 40 Greatest Overweight (x) 1 | . 1 . 1 1 1 Average Overweight (x) . | . . . . . . Largest Inventory Capacity 8 | . 8 5 8 8 8 Average Capacity 6 | . 7 5 5 8 7 Most Carried 8 | . 8 5 6 8 8 Average Carried 5 | . 6 3 4 6 7 Final Capacity 8 | 8 5 5 8 8 5 Final Carried 8 | 6 5 5 6 8 4 Class Distribution -------------------- 33% | Skirmisher 28% | Mutant 12% | Hacker-Bomber 10% | Hacker-Mutant 9% | Hacker-Gunner 4% | Bomber Dominant Class ---------------- Mutant | -10/Materials Skirmisher | -9/Materials Skirmisher | -8/Materials Hacker-Bomber | -7/Factory Hacker-Mutant | -7/Garrison Resources | -11 -10 -9 -8 -7 -7 ----------- Run | Yrd Mat Mat Mat Fac Gar Matter Collected 1084 | 177 105 147 222 67 366 Remotely . | . . . . . . Salvage Created 1661 | . 378 183 609 103 388 Parts 96 | . 27 13 23 6 27 Haulers Intercepted 1 | . . . 1 . . Recyclers Shooed 2 | . . 1 1 . . Parts Field Recycled 3 | . . . . 3 . Retrieved Matter 20 | . . . . 20 . Parts Self-Destructed . | . . . . . . Prevented . | . . . . . . Kills | -11 -10 -9 -8 -7 -7 ------- Run | Yrd Mat Mat Mat Fac Gar Combat Hostiles Destroyed 43 | . 9 8 10 2 14 Guns 10 | . 7 2 1 . . Cannons 14 | . . 2 1 1 10 AOE 19 | . 2 4 8 1 4 Classes Destroyed 17 | . 5 3 6 . 3 Worker 1 | . . . 1 . . Builder 3 | . 3 . . . . Tunneler 1 | . 1 . . . . Hauler 1 | . . . 1 . . Recycler 4 | . . . 4 . . Mechanic 2 | . 1 . . 1 . Operator 1 | . . . 1 . . Watcher 4 | . 1 1 2 . . Swarmer 8 | . . 4 . . 4 Cutter 3 | . . . . . 3 Grunt 20 | . 9 2 7 2 . Brawler 5 | . . . 1 . 4 Duelist 1 | . . 1 . . . Sentry 2 | . . 1 1 . . Demolisher 1 | . . . . . 1 Hunter 2 | . . . 1 . 1 Programmer 1 | . . . . . 1 Best Kill Streak 13 | . 8 5 13 2 10 Combat Bots Only 10 | . 3 5 6 2 10 Max Kills in Single Turn 4 | . 4 2 3 1 3 Gunslinging . | . . . . . . Exploded 3 | . 2 2 2 1 3 Melee . | . . . . . . Uniques/NPCs Destroyed . | . . . . . . Combat | -11 -10 -9 -8 -7 -7 -------- Run | Yrd Mat Mat Mat Fac Gar Hostile Shots Fired 290 | . 54 17 38 7 174 Missed 89 | . 18 6 13 3 49 Damage Taken 2905 | . 565 124 544 66 1606 Core 1023 | . 154 22 144 . 703 Absorbed by Shields . | . . . . . . Regen/Repaired (Parts) 42 | . 11 . . 31 . Core Remaining (%) 76 | 100 38 94 73 . . Volleys Fired 115 | . 38 11 21 5 40 Largest 4 | . 2 3 4 3 4 Hottest 226 | . 90 155 226 176 219 Shots Fired 231 | . 67 29 56 12 67 Gun 91 | . 62 11 17 . 1 Cannon 100 | . . 11 17 10 62 Launcher 40 | . 5 7 22 2 4 Special . | . . . . . . Kinetic 50 | . . 9 . . 41 Thermal 141 | . 62 13 34 10 22 Explosive 40 | . 5 7 22 2 4 Electromagnetic . | . . . . . . Robot Hit Streak 10 | . 5 10 9 5 7 Robot Miss Streak 4 | . 3 1 4 2 2 Penetration Max . | . . . . . . Secondary Targets . | . . . . . . Shots Hit Robots 123 | . 33 18 31 7 34 Core Hits 113 | . 26 14 42 5 26 Critical Kills . | . . . . . . Critical Parts Destroyed . | . . . . . . Critical Strikes 2 | . . . 2 . . Burn 2 | . . . 2 . . Melee Attacks . | . . . . . . Impact . | . . . . . . Slashing . | . . . . . . Piercing . | . . . . . . Sneak Attacks . | . . . . . . Combat Hostiles . | . . . . . . Follow-up Attacks . | . . . . . . Damage Inflicted 4778 | . 786 598 1800 218 1376 Guns 674 | . 359 127 165 . 23 Cannons 1353 | . . 104 185 137 927 Explosions 2741 | . 427 367 1450 81 416 Melee . | . . . . . . Ramming 10 | . . . . . 10 Kinetic 605 | . . 97 . . 508 Thermal 1422 | . 359 134 350 137 442 Explosive 2741 | . 427 367 1450 81 416 Electromagnetic . | . . . . . . Impact . | . . . . . . Slashing . | . . . . . . Piercing . | . . . . . . Highest Corruption 1 | . . . . . 1 Average Corruption 1 | . . . . . 1 Corruption Purged . | . . . . . . Corruption Blocked . | . . . . . . Overload Shots . | . . . . . . Overflow Damage 126 | . 63 10 48 . 5 Projectiles 13 | . . 8 . . 5 Explosions 113 | . 63 2 48 . . Melee . | . . . . . . Knockbacks 5 | . . . . . 5 Impact . | . . . . . . Kinetic 5 | . . . . . 5 Secondary . | . . . . . . Self-Inflicted Damage 269 | . 85 . 145 . 39 Shots 6 | . 2 . 3 . 1 Rammed 3 | . . . . . 3 Targets Rammed 3 | . . . . . 3 Kicked . | . . . . . . Crushed . | . . . . . . Highest Temperature 321 | . 321 168 321 153 289 Average Temperature 99 | . 105 45 129 58 105 Received Heat Transfer 717 | . 288 24 234 36 135 Effects 2 | . . . 2 . . Interference 2 | . . . 2 . . Siege Activations . | . . . . . . Robots Corrupted . | . . . . . . Combat Hostiles . | . . . . . . Parts Fried . | . . . . . . Impact Corruptions . | . . . . . . Robots Melted . | . . . . . . Combat Hostiles . | . . . . . . Parts Melted 6 | . 3 1 2 . . Heat Transferred 2879 | . 919 296 851 222 591 Parts Sabotaged . | . . . . . . Parts Stolen . | . . . . . . Parts Stripped . | . . . . . . Power Chain Reactions . | . . . . . . Alert | -11 -10 -9 -8 -7 -7 ------- Run | Yrd Mat Mat Mat Fac Gar Peak Influence 569 | . 398 470 569 315 568 Initial 258 | . . 167 198 258 220 Average 312 | . 210 347 356 283 362 Maximum Alert Level 2 | . 1 2 2 1 2 Low Security (%) 15 | . 46 16 5 . . Level 1 62 | . 53 55 55 100 65 Level 2 22 | . . 27 39 . 34 Level 3 . | . . . . . . Level 4 . | . . . . . . Level 5 . | . . . . . . High Security . | . . . . . . Max Security . | . . . . . . Squads Dispatched 7 | . 3 2 1 1 . Investigation 5 | . 2 1 1 1 . Extermination . | . . . . . . Reinforcement 2 | . 1 1 . . . Assault . | . . . . . . Garrison . | . . . . . . Intercept . | . . . . . . Searches Triggered . | . . . . . . Construction Impeded . | . . . . . . Haulers Reinforced . | . . . . . . Active Scanning Responses . | . . . . . . Cargo Convoy Interrupts . | . . . . . . Stealth | -11 -10 -9 -8 -7 -7 --------- Run | Yrd Mat Mat Mat Fac Gar Distress Signals 5 | . 2 . 3 . . Communications Jammed . | . . . . . . Distress Signals . | . . . . . . Times Spotted 80 | . 13 12 21 6 28 Peak Tracking Total 10 | . 4 4 7 4 10 Tactical Retreats 3 | . 1 . . . 2 Traps | -11 -10 -9 -8 -7 -7 ------- Run | Yrd Mat Mat Mat Fac Gar Traps Triggered 1 | . 1 . . . . Indirectly . | . . . . . . Trap Hack Attempts . | . . . . . . Triggered . | . . . . . . Disarmed . | . . . . . . Reprogrammed . | . . . . . . Reused . | . . . . . . Traps Extracted . | . . . . . . Installed . | . . . . . . Triggered . | . . . . . . Machines | -11 -10 -9 -8 -7 -7 ---------- Run | Yrd Mat Mat Mat Fac Gar Machines Disabled 10 | . 3 . 5 . 2 Max in Single Turn 2 | . 1 . 2 . 1 Garrison Relay 1 | . . . . . 1 Machines Repaired . | . . . . . . Machines Dismantled . | . . . . . . Machines Sabotaged . | . . . . . . Overloaded Fab Kills . | . . . . . . Hacking | -11 -10 -9 -8 -7 -7 --------- Run | Yrd Mat Mat Mat Fac Gar Machines Accessed 13 | . 2 2 7 2 . Terminals 8 | . 1 1 6 . . Fabricators . | . . . . . . Repair Stations 2 | . 1 . . 1 . Recycling Units 2 | . . 1 1 . . Scanalyzers . | . . . . . . Garrison Access 1 | . . . . 1 . Total Hacks 40 | . 5 7 22 6 . Successful 20 | . 3 3 10 4 . Failed 20 | . 2 4 12 2 . Catastrophic 4 | . 1 1 2 . . Database Lockouts . | . . . . . . Manual 9 | . . . 9 . . Terminals 27 | . 3 4 20 . . Fabricators . | . . . . . . Repair Stations 6 | . 2 . . 4 . Recycling Units 5 | . . 3 2 . . Scanalyzers . | . . . . . . Garrison Access 2 | . . . . 2 . Terminal Hacks 8 | . 1 1 6 . . Level Access Points 1 | . 1 . . . . Branch Access Points 1 | . . . 1 . . Terminal Index 1 | . . . 1 . . Alert Level 2 | . . 1 1 . . Unreport Threat 1 | . . . 1 . . Transport Status 1 | . . . 1 . . Recall Investigation 1 | . . . 1 . . Fabricator Hacks . | . . . . . . Repair Station Hacks 5 | . 2 . . 3 . Scan Component 3 | . 1 . . 2 . Repair 2 | . 1 . . 1 . Recycling Unit Hacks 4 | . . 2 2 . . Report Inventory 2 | . . 1 1 . . Retrieve Components 2 | . . 1 1 . . Scanalyzer . | . . . . . . Garrison Access Hacks 1 | . . . . 1 . Unlock Access 1 | . . . . 1 . Unauthorized Hacks 2 | . . . 2 . . Terminals 2 | . . . 2 . . Track 1 | . . . 1 . . Assimilate 1 | . . . 1 . . Fabricators . | . . . . . . Repair Stations . | . . . . . . Recycling Units . | . . . . . . Scanalyzers . | . . . . . . Garrison Access . | . . . . . . Data Cores Recovered . | . . . . . . Used . | . . . . . . Hacking Detections 12 | . 2 2 6 2 . Full Trace Events 4 | . 1 1 1 1 . Feedback Events . | . . . . . . Feedback Blocked . | . . . . . . Robot Schematics Acquired . | . . . . . . Robots Built . | . . . . . . Authchips . | . . . . . . Time . | . . . . . . Total Robot Build Rating . | . . . . . . Part Schematics Acquired . | . . . . . . Parts Built . | . . . . . . Authchips . | . . . . . . Time . | . . . . . . Total Part Build Rating . | . . . . . . Parts Repaired 2 | . 1 . . 1 . Time 64 | . 38 . . 26 . Parts Recycled . | . . . . . . Recycled Matter . | . . . . . . Retrieved Matter . | . . . . . . Retrieved Components 2 | . . 1 1 . . Parts Scanalyzed . | . . . . . . Part Schematics Acquired . | . . . . . . Parts Damaged . | . . . . . . Bothacking | -11 -10 -9 -8 -7 -7 ------------ Run | Yrd Mat Mat Mat Fac Gar Used RIF Installer . | . . . . . . Robots Hacked . | . . . . . . Non-combat . | . . . . . . Combat . | . . . . . . Robot Hacks Applied . | . . . . . . Relay Couplers Released 5 | . . . . . 5 Machine Destruction 5 | . . . . . 5 Fabnet Peak Effective % . | . . . . . . Robots Rewired . | . . . . . . Allies Hacked . | . . . . . . Hacks Repelled . | . . . . . . Allies | -11 -10 -9 -8 -7 -7 -------- Run | Yrd Mat Mat Mat Fac Gar Total Allies 1 | . . . 1 . . Largest Group 1 | . . . 1 . . Highest-Rated Group 10 | . . . 10 . . Highest-Rated Ally 10 | . . . 10 . . Total Orders . | . . . . . . Ally Attacks . | . . . . . . Total Damage . | . . . . . . Kills . | . . . . . . Allies Corrupted . | . . . . . . Allies Melted . | . . . . . . Intel | -11 -10 -9 -8 -7 -7 ------- Run | Yrd Mat Mat Mat Fac Gar Robot Analysis Total . | . . . . . . Derelict Logs Recovered . | . . . . . . Drone Launches . | . . . . . . Drone Recoveries . | . . . . . . Exploration | -11 -10 -9 -8 -7 -7 ------------- Run | Yrd Mat Mat Mat Fac Gar Turns Passed 1270 | . 306 171 361 157 275 Spaces Moved 979 | 1 169 159 323 116 211 Core 32 | . . . . . 32 Treads 5 | . . . . . 5 Legs 38 | 1 37 . . . . Wheels 790 | . 132 159 323 116 60 Hover 114 | . . . . . 114 Flight . | . . . . . . Fastest Speed 50 | 120 80 80 80 86 50 Average Speed 81 | 120 88 80 82 89 68 Slowest Speed 240 | 120 120 80 95 101 240 Overloaded Moves . | . . . . . . Propulsion Burnouts . | . . . . . . Robots Hopped . | . . . . . . Cave-ins Triggered . | . . . . . . Exploration Rate (%) 21 | 2 31 25 36 4 28 Regions Visited 5 Branch Regions . Pre-discovered Areas . | . . . . . . Known Exits Taken 2 | . 1 . . 1 . Unknown Exits Taken 3 | 1 . 1 1 . . Scrap Searched . | . . . . . . Spaces Dug . | . . . . . . Terrain Destroyed 254 | . 47 32 151 12 12 Melee . | . . . . . . Projectile 3 | . . . 2 . 1 AOE 251 | . 47 32 149 12 11 Terrain Rammed . | . . . . . . Walls Destroyed . | . . . . . . Machines Disabled . | . . . . . . Actions | -11 -10 -9 -8 -7 -7 --------- Run | Yrd Mat Mat Mat Fac Gar Total 1247 | . 260 179 372 158 278 Wait 58 | . 31 . 1 26 . Move 975 | . 168 158 322 116 211 Hop . | . . . . . . Pick Up 16 | . 4 3 6 2 1 Fast Attach 22 | . 4 1 9 2 6 Attach 15 | . 3 2 2 2 6 Detach 9 | . 4 . 2 1 2 Swap 11 | . 2 1 3 3 2 Drop 21 | . 6 3 6 1 5 Fire 115 | . 38 11 21 5 40 Melee . | . . . . . . Ram 3 | . . . . . 3 Kick . | . . . . . . Crush . | . . . . . . Escape Stasis . | . . . . . . Rewire . | . . . . . . Trap . | . . . . . . Miscellaneous 2 | . . . . . 2 Route ------- -11/Scrapyard -10/Materials (discovered 3 exits: *Mat x3) -9/Materials (discovered 2 exits: *Mat / [*Min]) -8/Materials -7/Factory -7/Garrison History --------- Turn | Location | Event 1 | -11/Scrapyard | Discovered new exit (range 0) 1 | -11/Scrapyard | Entered Materials 102 | -10/Materials | Identified exit to Materials 175 | -10/Materials | Core integrity fell below 50% 301 | -10/Materials | Repaired Machine Analyzer 307 | -10/Materials | Entered another Materials area 307 | -9/Materials | Evolved 2 slots: Utility x1, Weapon x1 366 | -9/Materials | Discovered new exit (range 8) 466 | -9/Materials | Discovered new exit (range 15) 478 | -9/Materials | Entered another Materials area 478 | -8/Materials | Evolved 2 slots: Utility x1, Weapon x1 621 | -8/Materials | Build established: Skirmisher 743 | -8/Materials | Lost 5 parts (1p1u3w) 837 | -8/Materials | Discovered new exit (range 3) 839 | -8/Materials | Entered Factory 839 | -7/Factory | Evolved 2 slots: Propulsion x1, Utility x1 894 | -7/Factory | Repaired Wheel 996 | -7/Factory | Identified exit to Garrison 996 | -7/Factory | Entered Garrison 1014 | -7/Garrison | Triggered checkpoint 1099 | -7/Garrison | Garrison Relay disabled 1152 | -7/Garrison | Triggered checkpoint 1180 | -7/Garrison | Triggered checkpoint 1219 | -7/Garrison | Triggered checkpoint 1223 | -7/Garrison | Lost 4 parts (1n2u1w) 1246 | -7/Garrison | Released all parts (6) 1251 | -7/Garrison | Core integrity fell below 50% 1263 | -7/Garrison | Destroyed 10 combat bots 1269 | -7/Garrison | Core integrity fell below 20% 1271 | -7/Garrison | Destroyed by Y-54 Guardian with Flak Gun Last Messages --------------- 01241_ Penetrated by Slug. 01242_ S-27 Virus destroyed. 01242_ Slug penetrates Y-54 Guardian. 01244_ Lgt. Treads destroyed. 01244_ Nuclear Core destroyed. 01245_ Particle Cannon destroyed. 01246_ Released Sml. Storage Unit. 01246_ Released Launcher Guidance Computer. 01246_ Released Mni. Assault Cannon. 01246_ Released Hvy. Particle Cannon. 01246_ Released Lgt. Treads. 01246_ Released Gauss Rifle. 01246_ Acquired 5 matter. 01262_ Dismantling Garrison Relay with Plasma Cutter. 01264_ Y-54 Guardian springs to life. 01265_ Dismantling Garrison Relay with Plasma Cutter. 01265_ Y-54 Guardian springs to life. 01267_ Plasma Cutter destroyed. 01268_ Slammed into S-27 Virus. 01271_ S-27 Virus destroyed. Map ----- +----------------------------------------------------+ | ?????????????????????????????????????? | | ?????????????????????????????#######?? | | ?????????????????????###????## #?? | | ?????????????????????#=#???? # #?? | | ?????????????????????#!#???# # #?? | | ?????????????????????# #???# ### #?? | | ?????????????????????# #???# #?# #?? | | ?????????????????????#|#???# #?# #?? | | ?????????????????????#=#???# #?# #?? | | ?????????????????????#=#???# #?# #?? | | ?????????????????????#=##### #?# #?? | | ???????????????????### #?# #?? | | ???????????????????#! ###### #?# #?? | | ???????????????????#! #????# #?# #?? | | ???????????????????#! #????# #?# #?? | | ??????????#######??## ###### ### #?? | | ??????????#"!"""#???# # # *## #?? | | ????????####!!!######%## ## ## #?? | | ????????# % %! % =* #?? | | ????????# %= / #?? | | ????????############### # # #?? | | ?????????????????????# # # #?? | | ?????????????????????##### # # #?? | | ?????????????????????????### ### #?? | | ????????####################"### ### | | ????????#Y @ | | ????????#Y =% g | | ????????#### [ ###### ##### ## ### | | ??????????#"""""#???# #???# ## #?# | | ??????????#######??## #???###### #?# | | ???????????????????#! #????????# #?# | | ???????????????????#! #????????# #?# | | ???????????????????#! #????????# #?# | | ???????????????????## #????????# ### | | ????????????????????# #????????# [] | | ????????????????????# ########## ]! | | ????????????????????# = | | ????????????????????################## | | ?????????????????????????????????????# | | ?????????????????????????????????????# | | ?????????????????????????????????????# | | ?????????????????????????????????????? | | ?????????????????????????????????????? | | ?????????????????????????????????????? | | ?????????????????????????????????????? | | ?????????????????????????????????????? | | ?????????????????????????????????????? | | ?????????????????????????????????????? | | ?????????????????????????????????????? | | ?????????????????????????????????????? | +----------------------------------------------------+ Best States ------------- Heat Dissipation 48 Energy Generation 14 Energy Capacity 275 Matter Stores 300 Matter Capacity 300 Sight Range 16 Terrain Scan Range 16 Terrain Scan Density 85 Evasion (%) 55 Launcher Accuracy 20 Recoil Reduction 2 Offensive Hacking 10 Defensive Hacking 10 Item Schematics ----------------- None Robot Schematics ------------------ None Fabricated ------------ Nothing Alien Tech Used ----------------- None Achievements -------------- None Challenges ------------ None Game ------ Seed ScanGhostSuperbattery Manual? 0 Play Time 00:15:47 Cumulative 720.2 hours Start 2024.04.18 @ 15:10:10 End 2024.04.19 @ 15:17:39 Sessions 3 Manual Loads 0 Difficulty Rogue Special Mode None Game No. 773 Rogue 498 Adventurer 123 Explorer 152 Win Type - Total 26 Types 20/0/4/1/0/0/0/1/0 Lore% 83 Gallery% 92 Achievement% 76 Wizard Run 0 Options --------- Layout 0 ASCII 0 Keyboard 1 Movement Numpad Keybinds 0 Fullscreen 2 Font 18/Terminus Map View 76x50 Zoom Use 2% Tactical HUD 1 Map Filters NONE Filters NONE Steam 1 RUN: 15496d90-bb76-426b-a2dd-3a21f7d6ede4